[Event "Early-Titled-Tuesday-Blitz-May-14-2024"]
[Site "Chess.com"]
[Date "2024.05.14"]
[Round "1"]
[White "TigrVShlyape"]
[Black "catalin009"]
[Result "1-0"]
[WhiteElo "2948"]
[BlackElo "2529"]
[TimeControl "180+1"]
[EndTime "8:07:01 PDT"]
[Termination "TigrVShlyape won by resignation"]

1. e4 {[%clk 0:03:00.9]} 1... c5 {[%clk 0:02:58.8]} 2. Nf3 {[%clk 0:02:58.6]}
2... e6 {[%clk 0:02:59.2]} 3. d4 {[%clk 0:02:52]} 3... cxd4 {[%clk 0:03:00.1]}
4. Nxd4 {[%clk 0:02:51.8]} 4... Nc6 {[%clk 0:03:01]} 5. Nb5 {[%clk 0:02:50.1]}
5... Nf6 {[%clk 0:02:57.5]} 6. N1c3 {[%clk 0:02:48.8]} 6... Bc5 {[%clk
0:02:51.1]} 7. Bf4 {[%clk 0:02:46.8]} 7... O-O {[%clk 0:02:46.9]} 8. Bc7 {[%clk
0:02:46.6]} 8... Qe7 {[%clk 0:02:44.6]} 9. Bd6 {[%clk 0:02:47]} 9... Bxd6 {[%clk
0:02:44.3]} 10. Qxd6 {[%clk 0:02:47.1]} 10... b6 {[%clk 0:02:41.9]} 11. Qxe7
{[%clk 0:02:46.2]} 11... Nxe7 {[%clk 0:02:42.1]} 12. O-O-O {[%clk 0:02:39.6]}
12... d5 {[%clk 0:02:39.6]} 13. Nc7 {[%clk 0:02:29.2]} 13... Rb8 {[%clk
0:02:37.4]} 14. exd5 {[%clk 0:02:29.5]} 14... exd5 {[%clk 0:02:36.6]} 15. N7xd5
{[%clk 0:02:28.7]} 15... Nexd5 {[%clk 0:02:35.5]} 16. Nxd5 {[%clk 0:02:28.9]}
16... Ne4 {[%clk 0:02:34.1]} 17. Ne7+ {[%clk 0:02:09.9]} 17... Kh8 {[%clk
0:02:33.7]} 18. Nxc8 {[%clk 0:02:08]} 18... Rfxc8 {[%clk 0:02:34.6]} 19. Ba6
{[%clk 0:01:59.4]} 19... Nxf2 {[%clk 0:02:22.3]} 20. Bxc8 {[%clk 0:01:53.1]}
20... Rxc8 {[%clk 0:02:22.9]} 21. Rhe1 {[%clk 0:01:51]} 21... Nxd1 {[%clk
0:02:22.8]} 22. Rxd1 {[%clk 0:01:50.6]} 22... g5 {[%clk 0:01:34.4]} 23. Rd7
{[%clk 0:01:49.4]} 23... Kg7 {[%clk 0:01:35.3]} 24. Rxa7 {[%clk 0:01:48.9]}
24... Re8 {[%clk 0:01:36.2]} 25. Kd2 {[%clk 0:01:44.7]} 25... Rd8+ {[%clk
0:01:35.2]} 26. Kc3 {[%clk 0:01:42.6]} 26... Rc8+ {[%clk 0:01:33.4]} 27. Kd3
{[%clk 0:01:40.5]} 27... Rd8+ {[%clk 0:01:33.6]} 28. Ke2 {[%clk 0:01:40]} 28...
Kg6 {[%clk 0:01:24.3]} 29. Re7 {[%clk 0:01:36.2]} 29... Rd6 {[%clk 0:01:15]} 30.
a4 {[%clk 0:01:35.1]} 30... f5 {[%clk 0:01:10.9]} 31. g3 {[%clk 0:01:33.1]}
31... h5 {[%clk 0:01:04.6]} 32. Re5 {[%clk 0:01:31.8]} 32... Kf6 {[%clk
0:00:59.2]} 33. Re3 {[%clk 0:01:26.7]} 33... g4 {[%clk 0:00:25]} 34. c4 {[%clk
0:01:20.7]} 34... f4 {[%clk 0:00:23.5]} 35. gxf4 {[%clk 0:01:20.2]} 35... Kf5
{[%clk 0:00:23.9]} 36. Re5+ {[%clk 0:01:19.8]} 36... Kxf4 {[%clk 0:00:24]} 37.
Rxh5 {[%clk 0:01:19.8]} 37... Re6+ {[%clk 0:00:23.9]} 38. Kd2 {[%clk 0:01:18.7]}
38... Kf3 {[%clk 0:00:11.5]} 39. b4 {[%clk 0:01:13.2]} 39... Re2+ {[%clk
0:00:05.2]} 40. Kd3 {[%clk 0:01:13.3]} 40... Re3+ {[%clk 0:00:05.4]} 41. Kd4
{[%clk 0:01:13.3]} 41... Re4+ {[%clk 0:00:05.7]} 42. Kd5 {[%clk 0:01:13.7]}
42... Re2 {[%clk 0:00:05.7]} 43. Kc6 {[%clk 0:01:13.2]} 43... Rb2 {[%clk
0:00:04.7]} 44. b5 {[%clk 0:01:11.9]} 44... Rb4 {[%clk 0:00:04.9]} 45. Kxb6
{[%clk 0:01:11.5]} 45... Rxc4 {[%clk 0:00:04.6]} 46. a5 {[%clk 0:01:11.9]} 46...
Kg2 {[%clk 0:00:04.3]} 47. a6 {[%clk 0:01:12]} 47... Rc3 {[%clk 0:00:05.2]} 48.
a7 {[%clk 0:01:11.6]} 48... Ra3 {[%clk 0:00:05.4]} 49. Kb7 {[%clk 0:01:11.4]}
49... Rh3 {[%clk 0:00:06.2]} 50. Rxh3 {[%clk 0:01:10.6]} 50... gxh3 {[%clk
0:00:06.3]} 51. a8=Q {[%clk 0:01:10.3]} 51... Kxh2 {[%clk 0:00:07.2]} 52. b6
{[%clk 0:01:09.3]} 1-0

[Event "Early-Titled-Tuesday-Blitz-May-14-2024"]
[Site "Chess.com"]
[Date "2024.05.14"]
[Round "1"]
[White "LeoLV10"]
[Black "VerdeNotte"]
[Result "0-1"]
[WhiteElo "2509"]
[BlackElo "2877"]
[TimeControl "180+1"]
[EndTime "8:07:02 PDT"]
[Termination "VerdeNotte won by resignation"]

1. e4 {[%clk 0:03:00.9]} 1... e5 {[%clk 0:02:56.9]} 2. Nf3 {[%clk 0:03:00.1]}
2... Nc6 {[%clk 0:02:56.7]} 3. Bb5 {[%clk 0:02:59.1]} 3... a6 {[%clk 0:02:55.7]}
4. Ba4 {[%clk 0:02:59.7]} 4... Nf6 {[%clk 0:02:55.4]} 5. O-O {[%clk 0:02:57.5]}
5... d6 {[%clk 0:02:55.7]} 6. Re1 {[%clk 0:02:47.4]} 6... Bd7 {[%clk 0:02:55]}
7. c3 {[%clk 0:02:47.7]} 7... g6 {[%clk 0:02:55.1]} 8. d4 {[%clk 0:02:47.9]}
8... Bg7 {[%clk 0:02:55]} 9. h3 {[%clk 0:02:46]} 9... O-O {[%clk 0:02:54.8]} 10.
Nbd2 {[%clk 0:02:45.4]} 10... exd4 {[%clk 0:02:51.5]} 11. cxd4 {[%clk
0:02:46.3]} 11... Nb4 {[%clk 0:02:51.5]} 12. Bb3 {[%clk 0:02:45.5]} 12... Nd3
{[%clk 0:02:49]} 13. Re3 {[%clk 0:02:45.6]} 13... Nxc1 {[%clk 0:02:49.2]} 14.
Rxc1 {[%clk 0:02:46.5]} 14... h6 {[%clk 0:02:34.8]} 15. Rec3 {[%clk 0:02:42]}
15... Rc8 {[%clk 0:02:27.8]} 16. Bc2 {[%clk 0:02:34.8]} 16... Nh5 {[%clk
0:02:20.3]} 17. Bb1 {[%clk 0:02:05.4]} 17... c5 {[%clk 0:02:16.5]} 18. e5 {[%clk
0:01:55.9]} 18... cxd4 {[%clk 0:02:11.7]} 19. Rxc8 {[%clk 0:01:49.5]} 19... Bxc8
{[%clk 0:02:12.6]} 20. exd6 {[%clk 0:01:46.8]} 20... Qxd6 {[%clk 0:02:12.7]} 21.
Nc4 {[%clk 0:01:46.9]} 21... Qf6 {[%clk 0:01:58.3]} 22. Nce5 {[%clk 0:01:43.4]}
22... Nf4 {[%clk 0:01:53.4]} 23. Kh2 {[%clk 0:01:18.3]} 23... Qd6 {[%clk
0:01:39.3]} 24. Nc4 {[%clk 0:01:17.2]} 24... Qb8 {[%clk 0:01:28.7]} 25. Kg1
{[%clk 0:01:15.4]} 25... Be6 {[%clk 0:01:25.8]} 26. b3 {[%clk 0:00:55.6]} 26...
d3 {[%clk 0:01:20.1]} 27. Ne1 {[%clk 0:00:08.1]} 27... Ne2+ {[%clk 0:01:13.4]}
28. Kh1 {[%clk 0:00:08.6]} 28... Nxc1 {[%clk 0:01:08.6]} 29. Qxc1 {[%clk
0:00:09.4]} 29... Bxc4 {[%clk 0:01:08.3]} 30. bxc4 {[%clk 0:00:08.7]} 30... Qe5
{[%clk 0:00:58.6]} 31. Nxd3 {[%clk 0:00:08]} 31... Qe2 {[%clk 0:00:52.1]} 32.
Kg1 {[%clk 0:00:05.4]} 32... Rd8 {[%clk 0:00:51.7]} 33. Qc2 {[%clk 0:00:05.2]}
33... Qxc2 {[%clk 0:00:50.2]} 34. Bxc2 {[%clk 0:00:06.1]} 34... Rd4 {[%clk
0:00:47.9]} 35. c5 {[%clk 0:00:01.8]} 35... Bf8 {[%clk 0:00:48.3]} 36. Kf1
{[%clk 0:00:01.2]} 36... Rc4 {[%clk 0:00:46]} 37. Bb3 {[%clk 0:00:01.8]} 37...
Rc3 {[%clk 0:00:46.5]} 38. Ke2 {[%clk 0:00:02.3]} 38... Bxc5 {[%clk 0:00:45.9]}
39. g3 {[%clk 0:00:01.3]} 39... Bd4 {[%clk 0:00:45]} 40. f4 {[%clk 0:00:01.3]}
40... Kg7 {[%clk 0:00:45.1]} 41. Kd2 {[%clk 0:00:01.1]} 41... h5 {[%clk
0:00:44.9]} 42. Nb4 {[%clk 0:00:01.6]} 42... Rxg3 {[%clk 0:00:44.3]} 43. Nd5
{[%clk 0:00:02]} 43... Rxh3 {[%clk 0:00:44.5]} 44. a4 {[%clk 0:00:01.6]} 44...
Rxb3 {[%clk 0:00:44.1]} 0-1

[Event "Early-Titled-Tuesday-Blitz-May-14-2024"]
[Site "Chess.com"]
[Date "2024.05.14"]
[Round "1"]
[White "Meri-Arabidze"]
[Black "Shivananda1964"]
[Result "1-0"]
[WhiteElo "2711"]
[BlackElo "2399"]
[TimeControl "180+1"]
[EndTime "8:07:02 PDT"]
[Termination "Meri-Arabidze won on time"]

1. Nf3 {[%clk 0:03:00.9]} 1... Nf6 {[%clk 0:02:57.5]} 2. c4 {[%clk 0:03:01.4]}
2... Nc6 {[%clk 0:02:55.7]} 3. g3 {[%clk 0:03:01.6]} 3... e5 {[%clk 0:02:55.7]}
4. Nc3 {[%clk 0:03:01.1]} 4... d5 {[%clk 0:02:55.5]} 5. cxd5 {[%clk 0:03:00.8]}
5... Nxd5 {[%clk 0:02:56.1]} 6. d3 {[%clk 0:03:01.5]} 6... Nb6 {[%clk
0:02:56.3]} 7. Bg2 {[%clk 0:03:01.8]} 7... Be7 {[%clk 0:02:56.8]} 8. O-O {[%clk
0:03:02.3]} 8... O-O {[%clk 0:02:57.4]} 9. Rb1 {[%clk 0:03:02.2]} 9... Be6
{[%clk 0:02:50.1]} 10. a3 {[%clk 0:02:49.3]} 10... f6 {[%clk 0:02:45.4]} 11. b4
{[%clk 0:02:48.7]} 11... a5 {[%clk 0:02:45.6]} 12. b5 {[%clk 0:02:44.9]} 12...
Nd4 {[%clk 0:02:45.6]} 13. a4 {[%clk 0:02:31.3]} 13... Qd7 {[%clk 0:02:36.1]}
14. Re1 {[%clk 0:02:19.2]} 14... Rad8 {[%clk 0:02:32.3]} 15. Bd2 {[%clk
0:02:15.8]} 15... Rfe8 {[%clk 0:02:21.8]} 16. Ne4 {[%clk 0:02:14.7]} 16... h6
{[%clk 0:02:04.2]} 17. Bxa5 {[%clk 0:02:13.9]} 17... Bd5 {[%clk 0:01:48.8]} 18.
Nxd4 {[%clk 0:01:56.9]} 18... exd4 {[%clk 0:01:48.5]} 19. Bb4 {[%clk 0:01:52.3]}
19... f5 {[%clk 0:01:41.4]} 20. Nd2 {[%clk 0:01:40.8]} 20... Bxg2 {[%clk
0:01:39.9]} 21. Kxg2 {[%clk 0:01:41.7]} 21... Nd5 {[%clk 0:01:35.4]} 22. Bxe7
{[%clk 0:01:41.2]} 22... Rxe7 {[%clk 0:01:17.2]} 23. Qb3 {[%clk 0:01:41.2]}
23... Kh7 {[%clk 0:01:12.7]} 24. Nf3 {[%clk 0:01:36.8]} 24... Nc3 {[%clk
0:01:05.3]} 25. Rb2 {[%clk 0:01:36.8]} 25... Rde8 {[%clk 0:00:52.3]} 26. Qc4
{[%clk 0:01:36.3]} 26... Nxe2 {[%clk 0:00:51.2]} 27. Ra1 {[%clk 0:01:19.6]}
27... f4 {[%clk 0:00:41.7]} 28. a5 {[%clk 0:01:19.2]} 28... fxg3 {[%clk
0:00:40.6]} 29. hxg3 {[%clk 0:01:20.1]} 29... Qg4 {[%clk 0:00:39.2]} 30. Rxe2
{[%clk 0:00:54]} 30... Rxe2 {[%clk 0:00:38.4]} 31. Qxd4 {[%clk 0:00:52.9]} 31...
Qxd4 {[%clk 0:00:27.5]} 32. Nxd4 {[%clk 0:00:53.8]} 32... Rd2 {[%clk 0:00:27.1]}
33. a6 {[%clk 0:00:53.4]} 33... bxa6 {[%clk 0:00:26.7]} 34. bxa6 {[%clk
0:00:54.3]} 34... Rxd3 {[%clk 0:00:26.8]} 35. Nb5 {[%clk 0:00:53.3]} 35... c6
{[%clk 0:00:23.4]} 36. Nc7 {[%clk 0:00:50.4]} 36... Rc8 {[%clk 0:00:11.7]} 37.
a7 {[%clk 0:00:48.8]} 37... Rd7 {[%clk 0:00:03.4]} 38. a8=Q {[%clk 0:00:46.7]}
38... Rxa8 {[%clk 0:00:03.6]} 39. Nxa8 {[%clk 0:00:47.3]} 39... c5 {[%clk
0:00:03.4]} 40. Nb6 {[%clk 0:00:47.3]} 40... Rd4 {[%clk 0:00:02.7]} 41. Rc1
{[%clk 0:00:47.2]} 41... Rb4 {[%clk 0:00:03.3]} 42. Nd7 {[%clk 0:00:45.6]} 42...
c4 {[%clk 0:00:02.4]} 43. Ne5 {[%clk 0:00:46.1]} 1-0

[Event "Early-Titled-Tuesday-Blitz-May-14-2024"]
[Site "Chess.com"]
[Date "2024.05.14"]
[Round "1"]
[White "Witik"]
[Black "Triumphmate"]
[Result "0-1"]
[WhiteElo "2777"]
[BlackElo "2473"]
[TimeControl "180+1"]
[EndTime "8:07:05 PDT"]
[Termination "Triumphmate won by checkmate"]

1. d4 {[%clk 0:02:53.2]} 1... d5 {[%clk 0:02:58.2]} 2. Nf3 {[%clk 0:02:52.9]}
2... e6 {[%clk 0:02:58]} 3. c4 {[%clk 0:02:51.4]} 3... Nf6 {[%clk 0:02:57.9]} 4.
g3 {[%clk 0:02:50.9]} 4... Be7 {[%clk 0:02:49.4]} 5. Bg2 {[%clk 0:02:50.8]} 5...
O-O {[%clk 0:02:50.1]} 6. O-O {[%clk 0:02:51.5]} 6... dxc4 {[%clk 0:02:50.5]} 7.
Qc2 {[%clk 0:02:51.8]} 7... c5 {[%clk 0:02:50.8]} 8. dxc5 {[%clk 0:02:46.9]}
8... Nc6 {[%clk 0:02:48.3]} 9. Qxc4 {[%clk 0:02:40.1]} 9... e5 {[%clk
0:02:39.2]} 10. b4 {[%clk 0:02:16]} 10... Be6 {[%clk 0:02:38.9]} 11. Qb5 {[%clk
0:01:53.6]} 11... a5 {[%clk 0:02:22.2]} 12. bxa5 {[%clk 0:00:53]} 12... Rxa5
{[%clk 0:02:09.5]} 13. Qxb7 {[%clk 0:00:52.4]} 13... Bd5 {[%clk 0:01:58.5]} 14.
Nc3 {[%clk 0:00:47.9]} 14... Rxc5 {[%clk 0:01:38.2]} 15. Nxd5 {[%clk 0:00:46.9]}
15... Nxd5 {[%clk 0:01:33.7]} 16. Ba3 {[%clk 0:00:25.1]} 16... Na5 {[%clk
0:01:32.5]} 17. Qa6 {[%clk 0:00:14.2]} 17... Rc6 {[%clk 0:01:31.4]} 18. Bxe7
{[%clk 0:00:13.7]} 18... Nxe7 {[%clk 0:01:09.5]} 19. Qb5 {[%clk 0:00:13.7]}
19... e4 {[%clk 0:00:57.3]} 20. Ng5 {[%clk 0:00:07.7]} 20... f5 {[%clk
0:00:50.1]} 21. Rfd1 {[%clk 0:00:07.1]} 21... Qc7 {[%clk 0:00:47.2]} 22. Rab1
{[%clk 0:00:03]} 22... h6 {[%clk 0:00:47.2]} 23. Nh3 {[%clk 0:00:03.4]} 23...
Ng6 {[%clk 0:00:43.9]} 24. e3 {[%clk 0:00:03.3]} 24... Nc4 {[%clk 0:00:42.5]}
25. Nf4 {[%clk 0:00:03.3]} 25... Nxf4 {[%clk 0:00:41.9]} 26. gxf4 {[%clk
0:00:03.9]} 26... Kh7 {[%clk 0:00:38.6]} 27. Rbc1 {[%clk 0:00:04.2]} 27... Rff6
{[%clk 0:00:33.6]} 28. Bf1 {[%clk 0:00:04.5]} 28... Nd2 {[%clk 0:00:28.7]} 29.
Rxc6 {[%clk 0:00:04.4]} 29... Nf3+ {[%clk 0:00:29.4]} 30. Kh1 {[%clk 0:00:04.4]}
30... Rxc6 {[%clk 0:00:29.4]} 31. Qxf5+ {[%clk 0:00:04.3]} 31... Rg6 {[%clk
0:00:28.8]} 32. Qxe4 {[%clk 0:00:04]} 32... Qc6 {[%clk 0:00:26.1]} 33. Qxc6
{[%clk 0:00:03.9]} 33... Rg1# {[%clk 0:00:26]} 0-1

[Event "Early-Titled-Tuesday-Blitz-May-14-2024"]
[Site "Chess.com"]
[Date "2024.05.14"]
[Round "1"]
[White "praveenb2002"]
[Black "yobdc"]
[Result "1-0"]
[WhiteElo "2863"]
[BlackElo "2501"]
[TimeControl "180+1"]
[EndTime "8:07:06 PDT"]
[Termination "praveenb2002 won by resignation"]

1. c4 {[%clk 0:03:00.9]} 1... e6 {[%clk 0:02:59.9]} 2. Nc3 {[%clk 0:02:58]} 2...
d5 {[%clk 0:03:00]} 3. cxd5 {[%clk 0:02:56]} 3... exd5 {[%clk 0:03:00.9]} 4. d4
{[%clk 0:02:55.6]} 4... c6 {[%clk 0:03:01.2]} 5. Bf4 {[%clk 0:02:51.5]} 5... Nf6
{[%clk 0:02:58]} 6. e3 {[%clk 0:02:49.7]} 6... Bf5 {[%clk 0:02:57.7]} 7. Bd3
{[%clk 0:02:49.1]} 7... Bxd3 {[%clk 0:02:56.7]} 8. Qxd3 {[%clk 0:02:50]} 8...
Be7 {[%clk 0:02:54.5]} 9. Nf3 {[%clk 0:02:48.2]} 9... O-O {[%clk 0:02:52.3]} 10.
O-O {[%clk 0:02:48.5]} 10... Na6 {[%clk 0:02:48.9]} 11. a3 {[%clk 0:02:39.4]}
11... Nc7 {[%clk 0:02:48.8]} 12. b4 {[%clk 0:02:39]} 12... Ne6 {[%clk
0:02:32.5]} 13. Bg3 {[%clk 0:02:38.9]} 13... a5 {[%clk 0:02:30.2]} 14. Rab1
{[%clk 0:02:30.5]} 14... axb4 {[%clk 0:02:30]} 15. axb4 {[%clk 0:02:30.3]} 15...
Ra3 {[%clk 0:02:15.4]} 16. Qc2 {[%clk 0:02:02.6]} 16... Re8 {[%clk 0:01:19.7]}
17. Ne5 {[%clk 0:01:57.2]} 17... Nd7 {[%clk 0:01:08.9]} 18. f4 {[%clk
0:01:54.7]} 18... f6 {[%clk 0:01:02.4]} 19. Nd3 {[%clk 0:01:35.7]} 19... Bf8
{[%clk 0:00:56]} 20. b5 {[%clk 0:01:20.2]} 20... Nb6 {[%clk 0:00:47.1]} 21. bxc6
{[%clk 0:01:13.2]} 21... bxc6 {[%clk 0:00:48]} 22. Nb2 {[%clk 0:00:45.4]} 22...
Nc7 {[%clk 0:00:25.1]} 23. Ncd1 {[%clk 0:00:39.6]} 23... Nb5 {[%clk 0:00:23.4]}
24. Qxc6 {[%clk 0:00:37.4]} 24... Nd6 {[%clk 0:00:15.6]} 25. f5 {[%clk
0:00:28.2]} 25... Ra8 {[%clk 0:00:06.4]} 26. Nd3 {[%clk 0:00:21.3]} 26... Nbc4
{[%clk 0:00:04]} 27. Qxd5+ {[%clk 0:00:19.6]} 27... Kh8 {[%clk 0:00:03.4]} 28.
Bxd6 {[%clk 0:00:16.6]} 28... Nxd6 {[%clk 0:00:03.2]} 29. Nc5 {[%clk 0:00:16.6]}
29... Ra5 {[%clk 0:00:03]} 30. e4 {[%clk 0:00:15.5]} 30... Qe7 {[%clk
0:00:02.7]} 31. Nc3 {[%clk 0:00:15.1]} 31... Rd8 {[%clk 0:00:01.8]} 32. Qe6
{[%clk 0:00:15.4]} 32... Qc7 {[%clk 0:00:01.7]} 33. Nd5 {[%clk 0:00:14.4]} 33...
Qb8 {[%clk 0:00:01.7]} 34. Rxb8 {[%clk 0:00:12.4]} 34... Rxb8 {[%clk 0:00:02.6]}
35. Nd7 {[%clk 0:00:12.5]} 1-0

[Event "Early-Titled-Tuesday-Blitz-May-14-2024"]
[Site "Chess.com"]
[Date "2024.05.14"]
[Round "1"]
[White "crescentmoon2411"]
[Black "Savagelittlemole"]
[Result "1-0"]
[WhiteElo "2843"]
[BlackElo "2484"]
[TimeControl "180+1"]
[EndTime "8:07:06 PDT"]
[Termination "crescentmoon2411 won by resignation"]

1. d4 {[%clk 0:03:00.9]} 1... Nf6 {[%clk 0:02:59.3]} 2. Nf3 {[%clk 0:03:00.6]}
2... c5 {[%clk 0:03:00]} 3. d5 {[%clk 0:03:00.3]} 3... e6 {[%clk 0:03:00.2]} 4.
c4 {[%clk 0:03:00.3]} 4... exd5 {[%clk 0:03:00.2]} 5. cxd5 {[%clk 0:03:01.2]}
5... d6 {[%clk 0:03:00.8]} 6. Nc3 {[%clk 0:03:01.5]} 6... g6 {[%clk 0:03:01]} 7.
e4 {[%clk 0:03:00.9]} 7... Bg7 {[%clk 0:03:01.3]} 8. Bb5+ {[%clk 0:03:00.4]}
8... Bd7 {[%clk 0:03:00.5]} 9. a4 {[%clk 0:03:00.1]} 9... O-O {[%clk 0:03:00.6]}
10. O-O {[%clk 0:02:59.9]} 10... Bxb5 {[%clk 0:02:58.4]} 11. axb5 {[%clk
0:02:59.6]} 11... Nbd7 {[%clk 0:02:54.5]} 12. Bf4 {[%clk 0:02:56.2]} 12... Qe7
{[%clk 0:02:52.3]} 13. Re1 {[%clk 0:02:54.8]} 13... Nh5 {[%clk 0:02:52.3]} 14.
Bg5 {[%clk 0:02:52.2]} 14... Bf6 {[%clk 0:02:51.6]} 15. Bh6 {[%clk 0:02:50.3]}
15... Bg7 {[%clk 0:02:51.5]} 16. Qd2 {[%clk 0:02:50]} 16... Ne5 {[%clk
0:02:40.8]} 17. Nxe5 {[%clk 0:02:46.7]} 17... Qxe5 {[%clk 0:02:40.7]} 18. g3
{[%clk 0:02:37.7]} 18... Bxh6 {[%clk 0:02:28.6]} 19. Qxh6 {[%clk 0:02:38.6]}
19... Ng7 {[%clk 0:02:29.1]} 20. Kg2 {[%clk 0:02:22.5]} 20... a6 {[%clk
0:02:25]} 21. Qf4 {[%clk 0:02:16.4]} 21... Qe7 {[%clk 0:02:09.4]} 22. e5 {[%clk
0:02:12.9]} 22... dxe5 {[%clk 0:02:07]} 23. Rxe5 {[%clk 0:02:12.9]} 23... Qd7
{[%clk 0:02:06.7]} 24. Ne4 {[%clk 0:02:05.1]} 24... f5 {[%clk 0:01:37.7]} 25.
Nxc5 {[%clk 0:02:01.7]} 25... Qxb5 {[%clk 0:01:36.9]} 26. Qd4 {[%clk 0:01:50.1]}
26... Rac8 {[%clk 0:01:26.9]} 27. Re7 {[%clk 0:01:39.1]} 27... Rf7 {[%clk
0:01:25.4]} 28. Rxf7 {[%clk 0:01:30.1]} 28... Kxf7 {[%clk 0:01:26.3]} 29. b4
{[%clk 0:01:18]} 29... Re8 {[%clk 0:01:12.2]} 30. Rc1 {[%clk 0:01:00.2]} 30...
Re7 {[%clk 0:00:33.9]} 31. d6 {[%clk 0:00:45.8]} 31... Qc6+ {[%clk 0:00:30.7]}
32. Kg1 {[%clk 0:00:45.6]} 32... Ne6 {[%clk 0:00:20.7]} 33. Qd2 {[%clk
0:00:32.4]} 33... Re8 {[%clk 0:00:11.3]} 34. Nxe6 {[%clk 0:00:30.9]} 34... Qe4
{[%clk 0:00:05.9]} 35. Ng5+ {[%clk 0:00:30]} 1-0

[Event "Early-Titled-Tuesday-Blitz-May-14-2024"]
[Site "Chess.com"]
[Date "2024.05.14"]
[Round "1"]
[White "vladgoncharov"]
[Black "agvega14"]
[Result "1-0"]
[WhiteElo "2569"]
[BlackElo "2135"]
[TimeControl "180+1"]
[EndTime "8:07:06 PDT"]
[Termination "vladgoncharov won on time"]

1. d4 {[%clk 0:02:59.5]} 1... d5 {[%clk 0:02:43.7]} 2. c4 {[%clk 0:02:58.8]}
2... e6 {[%clk 0:02:41.5]} 3. Nc3 {[%clk 0:02:58.2]} 3... Nf6 {[%clk 0:02:40.2]}
4. Bg5 {[%clk 0:02:57.4]} 4... Nbd7 {[%clk 0:02:40]} 5. e3 {[%clk 0:02:54.8]}
5... h6 {[%clk 0:02:35.4]} 6. Bh4 {[%clk 0:02:54.3]} 6... Bb4 {[%clk 0:02:35.8]}
7. cxd5 {[%clk 0:02:44.7]} 7... exd5 {[%clk 0:02:30.3]} 8. Bd3 {[%clk
0:02:43.8]} 8... O-O {[%clk 0:02:29.8]} 9. Ne2 {[%clk 0:02:42.9]} 9... Re8
{[%clk 0:02:26.3]} 10. O-O {[%clk 0:02:41.4]} 10... c6 {[%clk 0:02:26.3]} 11. a3
{[%clk 0:02:25.8]} 11... Bd6 {[%clk 0:02:25.3]} 12. Bg3 {[%clk 0:02:25]} 12...
Bxg3 {[%clk 0:02:20.2]} 13. Nxg3 {[%clk 0:02:23.8]} 13... Nf8 {[%clk 0:02:18.9]}
14. b4 {[%clk 0:02:14.9]} 14... a6 {[%clk 0:02:17.4]} 15. Qc2 {[%clk 0:02:10.2]}
15... Ng4 {[%clk 0:02:13.6]} 16. h3 {[%clk 0:02:06]} 16... Nf6 {[%clk
0:01:39.5]} 17. a4 {[%clk 0:02:05.6]} 17... Ne6 {[%clk 0:01:37.4]} 18. Rfd1
{[%clk 0:02:01.2]} 18... Bd7 {[%clk 0:01:30.8]} 19. b5 {[%clk 0:01:58.7]} 19...
axb5 {[%clk 0:01:23.2]} 20. axb5 {[%clk 0:01:58.3]} 20... Rc8 {[%clk 0:01:19.4]}
21. bxc6 {[%clk 0:01:57]} 21... bxc6 {[%clk 0:01:17.5]} 22. Na4 {[%clk
0:01:56.1]} 22... Ng5 {[%clk 0:00:55.2]} 23. Nc5 {[%clk 0:01:46.2]} 23... Bxh3
{[%clk 0:00:28.8]} 24. gxh3 {[%clk 0:01:36.6]} 24... Nxh3+ {[%clk 0:00:28.9]}
25. Kg2 {[%clk 0:01:36.5]} 25... Nxf2 {[%clk 0:00:25.6]} 26. Qxf2 {[%clk
0:01:19.6]} 26... Ng4 {[%clk 0:00:25.5]} 27. Qf4 {[%clk 0:01:08.6]} 27... Nxe3+
{[%clk 0:00:25.1]} 28. Kf3 {[%clk 0:01:06]} 28... Qg5 {[%clk 0:00:15]} 29. Qxg5
{[%clk 0:01:01.2]} 29... hxg5 {[%clk 0:00:15.9]} 30. Re1 {[%clk 0:01:00.2]}
30... g4+ {[%clk 0:00:14]} 31. Kf2 {[%clk 0:00:59.2]} 31... Nc4 {[%clk
0:00:12.3]} 32. Nf5 {[%clk 0:00:53]} 32... Rxe1 {[%clk 0:00:07.1]} 33. Rxe1
{[%clk 0:00:51.6]} 33... Ra8 {[%clk 0:00:05.2]} 34. Ne7+ {[%clk 0:00:48.8]}
34... Kf8 {[%clk 0:00:05.3]} 35. Nxc6 {[%clk 0:00:48.7]} 35... Ra2+ {[%clk
0:00:05.4]} 36. Kg3 {[%clk 0:00:47.8]} 36... g6 {[%clk 0:00:04.7]} 37. Nb4
{[%clk 0:00:41.9]} 37... Ra3 {[%clk 0:00:03]} 38. Nxd5 {[%clk 0:00:40.1]} 38...
Nb2 {[%clk 0:00:02.6]} 39. Nb4 {[%clk 0:00:31.9]} 1-0